fUSD/lending_fUSD_20250302
["ID","MTS","AMOUNT","RATE_DAILY","PERIOD"]
[355081617,1740887474641,-2540.27,0.00025479,2]
[355081619,1740887474652,-500.0,0.00025479,2]
[355081621,1740887474662,-752.51,0.00025479,2]
[355081623,1740887474673,-1557.28,0.00025479,2]
[355081625,1740887474686,-500.0,0.00025479,2]
[355081627,1740887474697,-512.01967252,0.00025479,2]
[355081629,1740887474707,-500.0,0.00025479,2]
[355081631,1740887474717,-533.75,0.00025479,2]
[355081633,1740887474727,-870.61,0.00025479,2]
[355081635,1740887474738,-500.0,0.00025479,2]
[355081637,1740887474747,-1783.03,0.00025479,2]
[355081639,1740887474757,-500.0,0.00025479,2]
[355081641,1740887474767,-510.6023845,0.00025479,2]
[355081642,1740887474777,-2012.85,0.00025479,2]
[355081644,1740887474787,-508.16399074,0.00025479,2]
[355081646,1740887474797,-299.77440808,0.00025479,2]
[355081648,1740887474806,-500.0,0.00025479,2]
[355081650,1740887474817,-844.33,0.00025479,2]
[355081652,1740887474826,-1176.97,0.00025479,2]
[355081654,1740887474837,-1475.57,0.00025479,2]
[355081656,1740887474847,-500.0,0.00025479,2]
[355081658,1740887474857,-601.31028375,0.00025479,2]
[355081660,1740887474868,-500.0,0.00025479,2]
[355081662,1740887474878,-1746.05,0.00025479,2]
[355081663,1740887474889,-599.92,0.00025479,2]
[355081665,1740887474899,-500.0,0.00025479,2]
[355081667,1740887474909,-500.0,0.00025479,2]
[355081669,1740887474920,-463.15484461,0.00025479,2]
[355081671,1740887474932,-509.19465162,0.00025479,2]
[355081673,1740887474943,-287.71,0.00025479,2]
[355081675,1740887474953,-1535.97,0.00025479,2]
[355081677,1740887474963,-1274.93,0.00025479,2]
[355081679,1740887474974,-500.0,0.00025479,2]
[355081694,1740887475123,-608.12,0.00025479,2]
[355081696,1740887475134,-515.13,0.00025479,2]
[355081698,1740887475145,-733.69,0.00025479,2]
[355081700,1740887475155,-570.69763592,0.00025479,2]
[355081702,1740887475165,-500.0,0.00025479,2]
[355081704,1740887475177,-560.4,0.00025479,2]
[355081705,1740887475187,-500.0,0.00025479,2]
[355081707,1740887475197,-500.0,0.00025479,2]
[355081710,1740887475209,-500.0,0.00025479,2]
[355081711,1740887475220,-500.0,0.00025479,2]
[355081713,1740887475230,-1341.6,0.00025479,2]
[355081715,1740887475240,-500.0,0.00025479,2]
[355081717,1740887475251,-1584.9,0.00025479,2]
[355081719,1740887475261,-506.09725693,0.00025479,2]
[355081721,1740887475272,-150.70115948,0.00025479,2]
[355081723,1740887475283,-566.47832685,0.00025479,2]
[355081725,1740887475293,-500.0,0.00025479,2]
[355081727,1740887475302,-1078.1,0.00025479,2]
[355081729,1740887475312,-536.83725785,0.00025479,2]
[355081731,1740887475321,-1521.75,0.00025479,2]
[355081733,1740887475331,-215.07397172,0.00025479,2]
[355081735,1740887475340,-1865.0,0.00025479,2]
[355081737,1740887475349,-502.02673061,0.00025479,2]
[355081739,1740887475359,-500.0,0.00025479,2]
[355081741,1740887475369,-183.13747148,0.00025479,2]
[355081743,1740887475378,-1655.28,0.00025479,2]
[355081745,1740887475388,-210.8503951,0.00025479,2]
[355081747,1740887475397,-500.0,0.00025479,2]
[355081749,1740887475407,-500.0,0.00025479,2]
[355081751,1740887475416,-618.8195095,0.00025479,2]
[355081752,1740887475426,-500.0,0.00025479,2]
[355081754,1740887475436,-500.0,0.00025479,2]
[355081756,1740887475446,-201.69,0.00025479,2]
[355081758,1740887475455,-500.0,0.00025479,2]
[355081760,1740887475465,-500.0,0.00025479,2]
[355081762,1740887475474,-500.0,0.00025479,2]
[355081764,1740887475484,-1038.07,0.00025479,2]
[355081766,1740887475493,-331.60558967,0.00025479,2]
[355081768,1740887475502,-500.0,0.00025479,2]
[355081770,1740887475512,-500.0,0.00025479,2]
[355081772,1740887475521,-500.0,0.00025479,2]
[355081774,1740887475531,-500.0,0.00025479,2]
[355081775,1740887475540,-500.0,0.00025479,2]
[355081777,1740887475549,-500.0,0.00025479,2]
[355081779,1740887475558,-500.0,0.00025479,2]
[355081781,1740887475567,-742.83,0.00025479,2]
[355081783,1740887475577,-500.0,0.00025479,2]
[355081785,1740887475586,-500.0,0.00025479,2]
[355081787,1740887475600,-938.31,0.00025479,2]
[355081789,1740887475609,-500.0,0.00025479,2]
[355081790,1740887475619,-1459.72,0.00025479,2]
[355081792,1740887475628,-500.0,0.00025479,2]
[355081794,1740887475638,-500.0,0.00025479,2]
[355081796,1740887475648,-532.91,0.00025479,2]
[355081798,1740887475657,-994.97,0.00025479,2]
[355081800,1740887475668,-500.0,0.00025479,2]
[355081802,1740887475680,-500.0,0.00025479,2]
[355081804,1740887475690,-502.46229094,0.00025479,2]
[355081806,1740887475700,-500.0,0.00025479,2]
[355081808,1740887475710,-709.92,0.00025479,2]
[355081810,1740887475721,-508.99663307,0.00025479,2]
[355081812,1740887475731,-500.0,0.00025479,2]
[355081813,1740887475741,-1170.83,0.00025479,2]
[355081815,1740887475751,-503.54423264,0.00025479,2]
[355081817,1740887475762,-500.0,0.00025479,2]
[355081819,1740887475772,-500.0,0.00025479,2]
[355081820,1740887475781,-500.0,0.00025479,2]
[355081821,1740887475791,-1135.5,0.00025479,2]
[355081822,1740887475800,-500.0,0.00025479,2]
[355081823,1740887475810,-508.85454702,0.00025479,2]
[355081824,1740887475819,-519.90326209,0.00025479,2]
[355081825,1740887475828,-491.47342823,0.00025479,2]
[355081826,1740887475838,-839.78,0.00025479,2]
[355081827,1740887475848,-500.0,0.00025479,2]
[355081828,1740887475858,-332.1,0.00025479,2]
[355081829,1740887475868,-507.57012548,0.00025479,2]
[355081830,1740887475878,-707.46,0.00025479,2]
[355081831,1740887475887,-500.0,0.00025479,2]
[355081832,1740887475897,-500.0,0.00025479,2]
[355081833,1740887475907,-696.66,0.00025479,2]
[355081834,1740887475917,-500.0,0.00025479,2]
[355081835,1740887475928,-619.89,0.00025479,2]
[355081836,1740887475938,-500.0,0.00025479,2]
[355081837,1740887475947,-509.10484021,0.00025479,2]
[355081838,1740887475957,-590.17,0.00025479,2]
[355081839,1740887475967,-1502.86,0.00025479,2]
[355081841,1740887475977,-500.0,0.00025479,2]
[355081843,1740887475987,-545.96991756,0.00025479,2]
[355081844,1740887475996,-500.0,0.00025479,2]
[355081846,1740887476006,-500.0,0.00025479,2]
[355081848,1740887476016,-512.43273948,0.00025479,2]
[355081850,1740887476027,-1326.11,0.00025479,2]
[355081852,1740887476037,-500.0,0.00025479,2]
[355081854,1740887476047,-522.59,0.00025479,2]
[355081856,1740887476056,-500.0,0.00025479,2]
[355081858,1740887476066,-863.92,0.00025479,2]
[355081860,1740887476076,-500.0,0.00025479,2]
[355081862,1740887476085,-500.0,0.00025479,2]
[355081864,1740887476095,-338.62,0.00025479,2]
[355081866,1740887476105,-500.0,0.00025479,2]
[355081867,1740887476115,-1570.35,0.00025479,2]
[355081869,1740887476125,-1416.37,0.00025479,2]
[355081871,1740887476134,-500.0,0.00025479,2]
[355081873,1740887476144,-599.84,0.00025479,2]
[355081875,1740887476153,-500.0,0.00025479,2]
[355081877,1740887476163,-1711.31,0.00025479,2]
[355081879,1740887476172,-500.0,0.00025479,2]
[355081881,1740887476184,-500.0,0.00025479,2]
[355081883,1740887476193,-623.26,0.00025479,2]
[355081885,1740887476203,-500.0,0.00025479,2]
[355081887,1740887476212,-157.03,0.00025551,2]
[355081888,1740887476222,-2162.02846587,0.00025653,2]
[355081890,1740887476232,-500.0,0.00025751,2]
[355081892,1740887476241,-516.61876544,0.00025751,2]
[355081894,1740887476251,-500.0,0.00025751,2]
[355081896,1740887476260,-500.0,0.00025751,2]
[355081898,1740887476270,-500.0,0.00025751,2]
[355081900,1740887476279,-500.0,0.00025751,2]
[355081902,1740887476288,-500.0,0.00025751,2]
[355081904,1740887476298,-500.0,0.00025751,2]
[355081906,1740887476307,-300.0,0.00025752,10]
[355081908,1740887476316,-604.69,0.00025752,2]
[355081910,1740887476326,-1815.67,0.00025752,2]
[355081911,1740887476335,-2287.74,0.00025752,2]
[355081913,1740887476345,-1353.94,0.00025752,2]
[355081915,1740887476354,-882.39,0.00025752,2]
[355081917,1740887476363,-1111.3,0.00025752,2]
[355081919,1740887476373,-2523.38,0.00025752,2]
[355081921,1740887476383,-500.0,0.00025752,2]
[355081923,1740887476392,-1004.64,0.00025752,2]
[355081925,1740887476401,-500.0,0.00025752,2]
[355081927,1740887476411,-1813.84,0.00025752,2]
[355081929,1740887476420,-500.0,0.00025752,2]
[355081931,1740887476430,-1689.15,0.00025752,2]
[355081933,1740887476440,-1000.0,0.00025752,2]
[355081935,1740887476449,-1508.64,0.00025752,2]
[355081937,1740887476458,-1571.69,0.00025752,2]
[355081938,1740887476468,-609.55,0.00025752,2]
[355081940,1740887476479,-500.0,0.00025753,2]
[355081942,1740887476488,-500.0,0.00025753,2]
[355081944,1740887476498,-615.81,0.00025753,2]
[355081946,1740887476509,-500.0,0.00025753,2]
[355081948,1740887476518,-500.0,0.00025753,2]
[355081950,1740887476528,-500.0,0.00025753,2]
[355081952,1740887476538,-500.0,0.00025753,2]
[355081954,1740887476548,-500.0,0.00025753,2]
[355081956,1740887476558,-500.0,0.00025753,2]
[355081958,1740887476568,-485.11681912,0.00025753,2]
[355081960,1740887476578,-192.68141586,0.00025753,2]
[355081962,1740887476588,-500.0,0.00025753,2]
[355081963,1740887476599,-179.59,0.00025753,2]
[355081965,1740887476609,-500.0,0.00025753,2]
[355081967,1740887476620,-500.0,0.00025753,2]
[355081969,1740887476631,-500.0,0.00025753,2]
[355081971,1740887476641,-500.0,0.00025753,2]
[355081973,1740887476650,-500.0,0.00025753,2]
[355081975,1740887476661,-500.0,0.00025753,2]
[355081977,1740887476671,-500.0,0.00025753,2]
[355081979,1740887476685,-500.0,0.00025753,2]
[355081981,1740887476695,-500.0,0.00025753,2]
[355081983,1740887476705,-500.0,0.00025753,2]
[355081985,1740887476715,-500.0,0.00025753,2]
[355081987,1740887476735,-500.0,0.00025753,2]
[355081989,1740887476750,-500.0,0.00025753,2]
[355081991,1740887476759,-500.0,0.00025753,2]
[355081992,1740887476769,-500.0,0.00025753,2]
[355081994,1740887476778,-500.0,0.00025753,2]
[355081996,1740887476788,-500.0,0.00025753,2]
[355081998,1740887476798,-500.0,0.00025753,2]
[355082000,1740887476807,-500.0,0.00025753,2]
[355082002,1740887476817,-500.0,0.00025753,2]
[355082004,1740887476827,-500.0,0.00025753,2]
[355082006,1740887476837,-500.0,0.00025753,2]
[355082008,1740887476848,-500.0,0.00025753,2]
[355082010,1740887476858,-513.38,0.00025753,2]
[355082012,1740887476867,-642.64,0.00025753,2]
[355082014,1740887476877,-500.0,0.00025753,2]
[355082016,1740887476887,-500.0,0.00025753,2]
[355082018,1740887476896,-500.0,0.00025753,2]
[355082020,1740887476906,-500.0,0.00025753,2]
[355082022,1740887476915,-500.0,0.00025753,2]
[355082024,1740887476925,-500.0,0.00025753,2]
[355082026,1740887476935,-500.0,0.00025753,2]
[355082028,1740887476945,-500.0,0.00025753,2]
[355082030,1740887476954,-805.392929,0.00025753,2]
[355082032,1740887476964,-500.0,0.00025753,2]
[355082034,1740887476974,-500.0,0.00025753,2]
[355082036,1740887476983,-500.0,0.00025753,2]
[355082050,1740887477116,-500.0,0.00025753,2]
[355082052,1740887477127,-500.0,0.00025753,2]
[355082054,1740887477138,-500.0,0.00025753,2]
[355082056,1740887477149,-500.0,0.00025753,2]
[355082058,1740887477160,-617.82,0.00025753,2]
[355082060,1740887477170,-792.3,0.00025753,2]
[355082062,1740887477181,-500.0,0.00025753,2]
[355082064,1740887477190,-500.0,0.00025753,2]
[355082066,1740887477200,-500.0,0.00025753,2]
[355082068,1740887477210,-500.0,0.00025753,2]
[355082070,1740887477219,-500.0,0.00025753,2]
[355082072,1740887477230,-811.726163,0.00025753,2]
[355082074,1740887477239,-915.56,0.00025753,2]
[355082076,1740887477248,-500.0,0.00025753,2]
[355082077,1740887477258,-500.0,0.00025753,2]
[355082079,1740887477267,-536.70740127,0.00025753,2]
[355082081,1740887477276,-500.0,0.00025753,2]
[355082083,1740887477286,-500.0,0.00025753,2]
[355082085,1740887477296,-985.91,0.00025753,2]
[355082087,1740887477306,-500.0,0.00025753,2]
[355082089,1740887477316,-607.74,0.00025753,2]
[355082091,1740887477326,-500.0,0.00025753,2]
[355082093,1740887477336,-500.0,0.00025753,2]
[355082095,1740887477346,-500.0,0.00025753,2]
[355082097,1740887477356,-500.0,0.00025753,2]
[355082099,1740887477366,-500.0,0.00025753,2]
[355082101,1740887477375,-500.0,0.00025753,2]
[355082103,1740887477385,-500.0,0.00025753,2]
[355082105,1740887477394,-500.0,0.00025753,2]
[355082107,1740887477403,-500.0,0.00025753,2]
[355082108,1740887477413,-500.0,0.00025753,2]
[355082110,1740887477423,-500.0,0.00025753,2]
[355082112,1740887477434,-500.0,0.00025753,2]
[355082114,1740887477443,-713.04,0.00025753,2]
[355082116,1740887477453,-500.0,0.00025753,2]
[355082118,1740887477462,-563.62,0.00025753,2]
[355082120,1740887477472,-500.0,0.00025753,2]
[355082122,1740887477482,-300.0,0.00025753,2]
[355082124,1740887477491,-500.0,0.00025753,2]
[355082126,1740887477502,-500.0,0.00025753,2]
[355082128,1740887477512,-513.17588752,0.00025753,2]
[355082130,1740887477521,-500.0,0.00025753,2]
[355082132,1740887477530,-500.0,0.00025753,2]
[355082134,1740887477539,-500.0,0.00025753,2]
[355082136,1740887477549,-500.0,0.00025753,2]
[355082138,1740887477559,-500.0,0.00025753,2]
[355082140,1740887477569,-441.2,0.00025753,2]
[355082142,1740887477579,-500.0,0.00025753,2]
[355082144,1740887477590,-500.0,0.00025753,2]
[355082146,1740887477602,-500.0,0.00025753,2]
[355082148,1740887477612,-500.0,0.00025753,2]
[355082150,1740887477621,-500.0,0.00025753,2]
[355082152,1740887477631,-887.27,0.00025753,2]
[355082154,1740887477642,-500.0,0.00025753,2]
[355082156,1740887477652,-500.0,0.00025753,2]
[355082158,1740887477662,-500.0,0.00025753,2]
[355082160,1740887477674,-500.0,0.00025753,2]
[355082162,1740887477684,-500.0,0.00025753,2]
[355082164,1740887477694,-500.0,0.00025753,2]
[355082166,1740887477703,-500.0,0.00025753,2]
[355082168,1740887477713,-500.0,0.00025753,2]
[355082170,1740887477723,-901.65,0.00025753,2]
[355082172,1740887477732,-500.0,0.00025753,2]
[355082174,1740887477742,-510.12209173,0.00025753,2]
[355082176,1740887477751,-500.0,0.00025753,2]
[355082178,1740887477762,-500.0,0.00025753,2]
[355082180,1740887477772,-500.0,0.00025753,2]
[355082182,1740887477782,-500.0,0.00025753,2]
[355082184,1740887477792,-500.0,0.00025753,2]
[355082186,1740887477802,-826.95,0.00025753,2]
[355082188,1740887477811,-500.0,0.00025753,2]
[355082190,1740887477822,-500.0,0.00025753,2]
[355082192,1740887477832,-500.0,0.00025753,2]
[355082194,1740887477842,-500.0,0.00025753,2]
[355082196,1740887477852,-500.0,0.00025753,2]
[355082198,1740887477862,-500.0,0.00025753,2]
[355082200,1740887477871,-500.0,0.00025753,2]
[355082202,1740887477881,-500.0,0.00025753,2]
[355082204,1740887477891,-500.0,0.00025753,2]
[355082206,1740887477900,-500.0,0.00025753,2]
[355082208,1740887477911,-500.0,0.00025753,2]
[355082210,1740887477920,-500.0,0.00025753,2]
[355082212,1740887477930,-500.0,0.00025753,2]
[355082214,1740887477939,-642.02,0.00025753,2]
[355082216,1740887477949,-500.0,0.00025753,2]
[355082218,1740887477959,-500.0,0.00025753,2]
[355082220,1740887477968,-500.0,0.00025753,2]
[355082222,1740887477977,-500.0,0.00025753,2]
[355082224,1740887477987,-500.0,0.00025753,2]
[355082226,1740887477996,-500.0,0.00025753,2]
[355082228,1740887478006,-500.0,0.00025753,2]
[355082230,1740887478016,-522.88,0.00025753,2]
[355082232,1740887478025,-500.0,0.00025753,2]
[355082234,1740887478035,-500.0,0.00025753,2]
[355082236,1740887478045,-500.0,0.00025753,2]
[355082238,1740887478056,-500.0,0.00025753,2]
[355082239,1740887478066,-500.0,0.00025753,2]
[355082242,1740887478076,-449.02541514,0.00025753,2]
[355082244,1740887478086,-500.0,0.00025753,2]
[355082245,1740887478095,-500.0,0.00025753,2]
[355082247,1740887478105,-500.0,0.00025753,2]
[355082249,1740887478115,-500.0,0.00025753,2]
[355082251,1740887478125,-1059.55,0.00025753,2]
[355082253,1740887478135,-500.0,0.00025753,2]
[355082255,1740887478145,-418.48139189,0.00025753,2]
[355082257,1740887478155,-500.0,0.00025753,2]
[355082259,1740887478164,-508.67076457,0.00025753,2]
[355082261,1740887478174,-500.0,0.00025753,2]
[355082263,1740887478183,-500.0,0.00025753,2]
[355082265,1740887478193,-500.0,0.00025753,2]
[355082267,1740887478202,-500.0,0.00025753,2]
[355082269,1740887478212,-500.0,0.00025753,2]
[355082271,1740887478222,-581.73,0.00025753,2]
[355082273,1740887478232,-513.71113514,0.00025753,2]
[355082275,1740887478241,-565.1,0.00025753,2]
[355082277,1740887478251,-628.42,0.00025753,2]
[355082279,1740887478260,-500.0,0.00025753,2]
[355082281,1740887478269,-510.23307774,0.00025753,2]
[355082283,1740887478279,-500.0,0.00025753,2]
[355082285,1740887478288,-867.58,0.00025753,2]
[355082287,1740887478298,-500.0,0.00025753,2]
[355082289,1740887478307,-500.0,0.00025753,2]
[355082291,1740887478316,-1218.62,0.00025753,2]
[355082293,1740887478326,-500.0,0.00025753,2]
[355082295,1740887478335,-405.96,0.00025753,2]
[355082297,1740887478344,-500.0,0.00025753,2]
[355082299,1740887478354,-500.0,0.00025753,2]
[355082301,1740887478364,-1015.97,0.00025753,2]
[355082303,1740887478374,-500.0,0.00025753,2]
[355082305,1740887478383,-500.0,0.00025753,2]
[355082307,1740887478393,-1288.29,0.00025753,2]
[355082309,1740887478402,-500.0,0.00025753,2]
[355082310,1740887478412,-500.0,0.00025753,2]
[355082311,1740887478421,-254.67,0.00025753,2]
[355082312,1740887478432,-856.24,0.00025753,2]
[355082313,1740887478442,-500.0,0.00025753,2]
[355082314,1740887478451,-577.63,0.00025753,2]
[355082315,1740887478462,-1023.39,0.00025753,2]
[355082316,1740887478471,-500.0,0.00025753,2]
[355082317,1740887478481,-1167.74,0.00025753,2]
[355082318,1740887478490,-1673.85,0.00025753,2]
[355082319,1740887478499,-566.11,0.00025753,2]
[355082321,1740887478508,-500.0,0.00025753,2]
[355082323,1740887478518,-2540.27,0.00025753,2]
[355082325,1740887478528,-500.0,0.00025753,2]
[355082327,1740887478537,-752.51,0.00025753,2]
[355082329,1740887478548,-1557.28,0.00025753,2]
[355082331,1740887478558,-327.59912644,0.00025753,2]
[355082333,1740887478567,-500.0,0.00025753,2]
[355082335,1740887478577,-870.61,0.00025753,2]
[355082337,1740887478587,-422.37685669,0.00025753,2]
[355082339,1740887478599,-1783.03,0.00025753,2]
[355082341,1740887478609,-500.0,0.00025753,2]
[355082343,1740887478619,-533.75,0.00025753,2]
[355082345,1740887478628,-2012.85,0.00025753,2]
[355082347,1740887478638,-514.03081757,0.00025753,2]
[355082349,1740887478648,-844.33,0.00025753,2]
[355082351,1740887478659,-1176.97,0.00025753,2]
[355082353,1740887478669,-1475.57,0.00025753,2]
[355082355,1740887478681,-500.0,0.00025753,2]
[355082357,1740887478691,-500.0,0.00025753,2]
[355082359,1740887478701,-1746.05,0.00025753,2]
[355082361,1740887478711,-599.92,0.00025753,2]
[355082363,1740887478720,-500.0,0.00025753,2]
[355082365,1740887478730,-500.0,0.00025753,2]
[355082367,1740887478741,-1535.97,0.00025753,2]
[355082369,1740887478750,-1274.93,0.00025753,2]
[355082371,1740887478760,-500.0,0.00025753,2]
[355082373,1740887478771,-608.12,0.00025753,2]
[355082375,1740887478781,-515.13,0.00025753,2]
[355082377,1740887478791,-733.69,0.00025753,2]
[355082379,1740887478801,-500.0,0.00025753,2]
[355082381,1740887478810,-560.4,0.00025753,2]
[355082394,1740887478928,-500.0,0.00025753,2]
[355082396,1740887478948,-500.0,0.00025753,2]
[355082398,1740887478958,-500.0,0.00025753,2]
[355082400,1740887478968,-1341.6,0.00025753,2]
[355082403,1740887478979,-500.0,0.00025753,2]
[355082405,1740887478989,-1584.9,0.00025753,2]
[355082407,1740887478999,-500.0,0.00025753,2]
[355082409,1740887479008,-1078.1,0.00025753,2]
[355082410,1740887479018,-1521.75,0.00025753,2]
[355082412,1740887479027,-1865.0,0.00025753,2]
[355082414,1740887479037,-500.0,0.00025753,2]
[355082416,1740887479048,-1655.28,0.00025753,2]
[355082419,1740887479058,-500.0,0.00025753,2]
[355082421,1740887479069,-500.0,0.00025753,2]
[355082422,1740887479079,-500.0,0.00025753,2]
[355082425,1740887479089,-500.0,0.00025753,2]
[355082427,1740887479099,-500.0,0.00025753,2]
[355082429,1740887479109,-500.0,0.00025753,2]
[355082431,1740887479119,-500.0,0.00025753,2]
[355082433,1740887479128,-1038.07,0.00025753,2]
[355082435,1740887479142,-500.0,0.00025753,2]
[355082437,1740887479152,-500.0,0.00025753,2]
[355082439,1740887479162,-500.0,0.00025753,2]
[355082441,1740887479172,-500.0,0.00025753,2]
[355082443,1740887479182,-500.0,0.00025753,2]
[355082445,1740887479192,-500.0,0.00025753,2]
[355082447,1740887479202,-742.83,0.00025753,2]
[355082449,1740887479212,-500.0,0.00025753,2]
[355082451,1740887479222,-500.0,0.00025753,2]
[355082453,1740887479232,-938.31,0.00025753,2]
[355082455,1740887479241,-500.0,0.00025753,2]
[355082457,1740887479257,-1459.72,0.00025753,2]
[355082459,1740887479267,-500.0,0.00025753,2]
[355082461,1740887479277,-500.0,0.00025753,2]
[355082463,1740887479289,-532.91,0.00025753,2]
[355082465,1740887479298,-994.97,0.00025753,2]
[355082467,1740887479308,-500.0,0.00025753,2]
[355082469,1740887479317,-500.0,0.00025753,2]
[355082471,1740887479326,-709.92,0.00025753,2]
[355082473,1740887479336,-500.0,0.00025753,2]
[355082475,1740887479346,-1170.83,0.00025753,2]
[355082477,1740887479355,-500.0,0.00025753,2]
[355082479,1740887479365,-500.0,0.00025753,2]
[355082481,1740887479375,-500.0,0.00025753,2]
[355082483,1740887479385,-1135.5,0.00025753,2]
[355082485,1740887479395,-500.0,0.00025753,2]
[355082487,1740887479405,-839.78,0.00025753,2]
[355082489,1740887479414,-500.0,0.00025753,2]
[355082491,1740887479424,-707.46,0.00025753,2]
[355082493,1740887479434,-500.0,0.00025753,2]
[355082495,1740887479444,-500.0,0.00025753,2]
[355082497,1740887479454,-696.66,0.00025753,2]
[355082499,1740887479463,-500.0,0.00025753,2]
[355082501,1740887479473,-619.89,0.00025753,2]
[355082503,1740887479483,-500.0,0.00025753,2]
[355082505,1740887479493,-1502.86,0.00025753,2]
[355082507,1740887479503,-590.17,0.00025753,2]
[355082509,1740887479513,-500.0,0.00025753,2]
[355082511,1740887479523,-500.0,0.00025753,2]
[355082513,1740887479533,-500.0,0.00025753,2]
[355082515,1740887479543,-1326.11,0.00025753,2]
[355082517,1740887479553,-500.0,0.00025753,2]
[355082519,1740887479562,-522.59,0.00025753,2]
[355082521,1740887479572,-500.0,0.00025753,2]
[355082523,1740887479582,-863.92,0.00025753,2]
[355082525,1740887479592,-500.0,0.00025753,2]
[355082527,1740887479607,-500.0,0.00025753,2]
[355082529,1740887479618,-500.0,0.00025753,2]
[355082532,1740887479628,-1570.35,0.00025753,2]
[355082533,1740887479639,-1416.37,0.00025753,2]
[355082535,1740887479657,-500.0,0.00025753,2]
[355082538,1740887479667,-599.84,0.00025753,2]
[355082540,1740887479677,-500.0,0.00025753,2]
[355082541,1740887479687,-1711.31,0.00025753,2]
[355082544,1740887479697,-500.0,0.00025753,2]
[355082545,1740887479707,-500.0,0.00025753,2]
[355082547,1740887479716,-623.26,0.00025753,2]
[355082550,1740887479730,-500.0,0.00025753,2]
[355082552,1740887479739,-284.76176158,0.00025762,4]
[355082554,1740887479749,-157.03,0.00025764,2]
[355082557,1740887479770,-1126.22218863,0.00025773,2]
[355082560,1740887479790,-1040.53477436,0.00025836,2]
[355082564,1740887479816,-157.03,0.00025977,2]
[355082567,1740887479840,-3370.0,0.00026,2]
[355082570,1740887479858,-2162.02846587,0.00026018,2]
[355082574,1740887479881,-500.0,0.00026024,2]
[355082577,1740887479904,-500.0,0.00026024,2]
[355082580,1740887479929,-500.0,0.00026025,2]
[355082583,1740887479950,-508.91142848,0.00026025,2]
[355082587,1740887479970,-500.0,0.00026025,2]
[355082590,1740887479991,-512.22989593,0.00026025,2]
[355082592,1740887480007,-500.0,0.00026025,2]
[355082595,1740887480027,-340.17588947,0.00026025,2]
[355082598,1740887480042,-300.0,0.00026026,10]
[355082601,1740887480062,-500.0,0.00026026,2]
[355082603,1740887480075,-2206.95,0.00026026,2]
[355082606,1740887480094,-1593.1,0.00026026,2]
[355082609,1740887480110,-1214.58,0.00026026,2]
[355082611,1740887480127,-604.69,0.00026026,2]
[355082614,1740887480144,-1815.67,0.00026026,2]
[355082617,1740887480160,-2287.74,0.00026026,2]
[355082619,1740887480179,-1353.94,0.00026026,2]
[355082622,1740887480196,-882.39,0.00026026,2]
[355082625,1740887480212,-1111.3,0.00026026,2]
[355082627,1740887480229,-2523.38,0.00026026,2]
[355082630,1740887480246,-500.0,0.00026026,2]